fUSD/lending_fUSD_20240530
["ID","MTS","AMOUNT","RATE_DAILY","PERIOD"]
[328199787,1717053033451,-295.43,0.00025008,2]
[328199788,1717053033460,-295.43,0.00025015,2]
[328199789,1717053033472,-295.43,0.00025021,2]
[328199790,1717053033481,-295.43,0.00025028,2]
[328199791,1717053033490,-295.43,0.00025035,2]
[328199792,1717053033499,-270.0,0.0002504,2]
[328199793,1717053033508,-295.43,0.00025041,2]
[328199794,1717053033518,-295.43,0.00025048,2]
[328199795,1717053033527,-295.43,0.00025054,2]
[328199796,1717053033536,-295.43,0.00025061,2]
[328199797,1717053033546,-295.43,0.00025068,2]
[328199798,1717053033555,-295.43,0.00025074,2]
[328199799,1717053033566,-295.43,0.00025081,2]
[328199800,1717053033575,-295.43,0.00025087,2]
[328199801,1717053033585,-295.43,0.00025094,2]
[328199802,1717053033594,-295.43,0.000251,2]
[328199803,1717053033603,-174.43,0.00025105,2]
[328199804,1717053033613,-270.0,0.0002561,2]
[328199805,1717053033622,-167.0,0.00025747,2]
[328199806,1717053033631,-270.0,0.0002619,2]
[328199807,1717053033641,-250.0,0.00026623,2]
[328199808,1717053033650,-270.0,0.0002677,2]
[328199809,1717053033660,-565.26,0.00027088,2]
[328199810,1717053033670,-154.79,0.000273,2]
[328199811,1717053033680,-270.0,0.0002735,2]
[328199812,1717053033689,-1437.0,0.000276,3]
[328199813,1717053033699,-270.0,0.0002792,2]
[328199814,1717053033708,-400.0,0.00027988,2]
[328199815,1717053033719,-600.0,0.00028097,2]
[328199816,1717053033728,-2224.17392557,0.00028311,2]
[328199817,1717053033740,-942.82607443,0.00028311,2]
[328199818,1717053033749,-462.97696557,0.00028445,2]
[328199819,1717053033761,-560.40765848,0.00028445,2]
[328199820,1717053033772,-39.61537595,0.00028445,2]
[328199821,1717053033781,-175.861,0.00028445,2]
[328199822,1717053033790,-464.00242405,0.00028445,2]
[328199823,1717053033801,-1723.49402903,0.00028445,2]
[328199824,1717053033812,-23.75554692,0.00028445,2]
[328199825,1717053033821,-460.80207782,0.00028445,2]
[328199826,1717053033832,-4129.85330066,0.00028445,2]
[328199827,1717053033844,-474.37904849,0.00028445,2]
[328199828,1717053033855,-703.96557303,0.00028445,2]
[328199829,1717053033863,-322.4326679,0.00028445,2]
[328199830,1717053033874,-1144.5673321,0.00028445,2]
[328199831,1717053033883,-270.0,0.000285,2]
[328199832,1717053033893,-253.50901458,0.00028708,2]
[328199833,1717053033904,-26.59783983,0.00028895,2]
[328199845,1717053038729,-450.77172157,0.00028895,2]
[328199846,1717053038742,-447.91966129,0.00028895,2]
[328199847,1717053038754,-3843.45638656,0.00028895,2]
[328199848,1717053038763,-179.93587427,0.00028895,2]
[328199849,1717053038773,-500.0,0.000289,2]
[328199850,1717053038782,-2818.8478,0.000289,2]
[328199851,1717053038791,-315.64767308,0.000289,2]
[328199852,1717053038801,-292.58,0.0002899,10]
[328199853,1717053038810,-11376.42595036,0.00028995,2]
[328199854,1717053038822,-10228.15692408,0.00028995,2]
[328199867,1717053042571,-374.45999999,0.00028995,2]
[328199868,1717053042808,-324.26292933,0.00028995,2]
[328199869,1717053043612,-6015.27665635,0.00028995,2]
[328199873,1717053043916,-4419.33380409,0.00028995,2]
[328199874,1717053043927,-123.4964796,0.00028995,2]
[328199875,1717053043937,-6259.78523284,0.00028995,2]
[328199881,1717053046689,-242.43678576,0.00028994,2]
[328199882,1717053046699,-371.63804196,0.00028995,2]
[328199883,1717053046708,-204.1553427,0.00028995,2]
[328199884,1717053046718,-1954.4253396,0.00028995,2]
[328199885,1717053046727,-513.80941952,0.00028995,2]
[328199886,1717053046740,-912.99999955,0.00028995,2]
[328199887,1717053046752,-555.24923906,0.00028995,2]
[328199888,1717053046763,-264.5562,0.00028995,2]
[328199889,1717053046774,-934.82500001,0.00028995,2]
[328199890,1717053046785,-1143.681254,0.00028995,2]
[328199891,1717053046923,-935.67500001,0.00028995,2]
[328199892,1717053046935,-679.77972978,0.00028995,2]
[328199893,1717053046946,-374.6,0.00028995,2]
[328199894,1717053057216,442.27075883,0.00012738,2]
[328199896,1717053346461,1007.37,0.0003,120]
[328199898,1717053365370,2000.0,0.00031,120]
[328199900,1717053642280,1000.0,0.0003,120]
[328199915,1717054096748,159.39,0.00013973,2]
[328200003,1717054231935,-1206.76319468,0.00017259,2]
[328200005,1717054231947,-451.92492773,0.00017259,2]
[328200007,1717054231959,-322.91174239,0.00017259,2]
[328200008,1717054231970,-2770.24101558,0.00017259,2]
[328200011,1717054231979,-617.07057796,0.00017532,2]
[328200013,1717054231988,-4104.47296964,0.00017533,2]
[328200016,1717054232000,-938.21279485,0.00017533,2]
[328200020,1717054232209,-776.61022031,0.00017533,2]
[328200023,1717054232221,-1875.8943,0.00017533,2]
[328200027,1717054232234,-3223.14669934,0.00017533,2]
[328200028,1717054232355,-624.91528117,0.00017533,2]
[328200029,1717054232369,-767.47025123,0.00017533,2]
[328200030,1717054232382,-4574.59801111,0.00017533,2]
[328200037,1717054237868,-1075.20170573,0.00017533,2]
[328200038,1717054237879,-1746.81414278,0.00017533,2]
[328200039,1717054237891,-2024.24689989,0.00017533,2]
[328200040,1717054237904,-1005.85621951,0.00017533,2]
[328200041,1717054237914,-260.0,0.0002273,2]
[328200042,1717054237923,-260.0,0.0002331,2]
[328200043,1717054237934,-155.23910439,0.0002388,2]
[328200047,1717054238068,-104.76089561,0.0002388,2]
[328200049,1717054238077,-260.0,0.0002446,2]
[328200051,1717054238087,-480.47,0.00024665,2]
[328200053,1717054238097,-260.0,0.0002504,2]
[328200055,1717054238106,-130.67323879,0.0002561,2]
[328200057,1717054238117,-129.32676121,0.0002561,2]
[328200059,1717054238127,-260.0,0.0002619,2]
[328200061,1717054238136,-7.02079167,0.0002638,2]
[328200066,1717054240993,-147.76920833,0.0002638,2]
[328200067,1717054241001,-250.0,0.00026492,2]
[328200068,1717054241011,-500.16954078,0.00026492,2]
[328200069,1717054241022,-418.32442413,0.00026492,2]
[328200070,1717054242085,-111.38603509,0.00026492,2]
[328200071,1717054242094,-240.0,0.00026526,2]
[328200072,1717054242104,-189.00396491,0.00026583,2]
[328200073,1717054242115,-60.99603509,0.00026583,2]
[328200074,1717054242125,-241.36,0.00026593,2]
[328200075,1717054242133,-260.0,0.0002677,2]
[328200076,1717054242144,-480.47,0.00026928,2]
[328200077,1717054242153,-260.0,0.0002735,2]
[328200078,1717054242162,-662.3903507,0.00027545,2]
[328200079,1717054242171,-285.84,0.00027562,2]
[328200080,1717054242180,-308.94361421,0.000277,3]
[328200098,1717054242941,-250.05638579,0.000277,3]
[328200099,1717054242950,-260.0,0.0002792,2]
[328200100,1717054242960,-109.04818863,0.00028401,2]
[328200101,1717054242972,-650.95181137,0.00028401,2]
[328200102,1717054242981,-1346.35440896,0.00028474,2]
[328200103,1717054243101,-2974.96251478,0.00028474,2]
[328200104,1717054243110,-260.0,0.000285,2]
[328200105,1717054243120,-300.62,0.00028658,2]
[328200106,1717054243129,-500.0,0.00028767,4]
[328200107,1717054243139,-13254.64032602,0.000288,4]
[328200108,1717054243150,-8558.47698599,0.000288,4]
[328200109,1717054243161,-3835.81286625,0.000288,4]
[328200110,1717054243172,-3651.32450743,0.000288,4]
[328200111,1717054243183,-684.95903854,0.000288,4]
[328200114,1717054243517,-2667.32369017,0.000288,4]
[328200115,1717054243529,-2577.14135281,0.000288,4]
[328200116,1717054243541,-4950.23388711,0.000288,4]
[328200117,1717054243552,-47212.3136256,0.000288,4]
[328200118,1717054243562,-1361.0463,0.000289,2]
[328200119,1717054243572,-4291.87104828,0.000289,2]
[328200120,1717054243582,-369.55401668,0.000289,2]
[328200121,1717054243591,-1364.07795244,0.000289,2]
[328200122,1717054243600,-2689.80838,0.00028995,2]
[328200123,1717054243609,-2365.4678549,0.00028998,2]
[328200124,1717054243620,-1893.52073572,0.00028998,2]
[328200125,1717054243629,-946.50736403,0.00028998,2]
[328200126,1717054243639,-465.03141336,0.00028998,2]
[328200127,1717054243648,-1000.0,0.00028998,2]
[328200128,1717054243658,-263.32579252,0.00028998,2]
[328200129,1717054243667,-150.01,0.00028999,2]
[328200130,1717054243676,-4294.78552147,0.00028999,2]
[328200131,1717054243686,-150794.15119524,0.00029,2]
[328200132,1717054243695,-1483.6790455,0.00029,2]
[328200133,1717054243705,-5000.0,0.00029,2]
[328200134,1717054243714,-344.0,0.00029,2]
[328200135,1717054243724,-3275.873024,0.00029,2]
[328200136,1717054243733,-56534.4586022,0.00029,2]
[328200137,1717054243742,-1500.0,0.00029,2]
[328200138,1717054243751,-150.0,0.00029,6]
[328200139,1717054243761,-3610.4633247,0.00029001,2]
[328200140,1717054243771,-8586.8146189,0.00029021,2]
[328200141,1717054243780,-500.0,0.00029041,5]
[328200142,1717054243790,-270.0,0.0002908,2]
[328200143,1717054243799,-260.0,0.0002908,2]
[328200144,1717054243808,-480.47,0.00029192,2]
[328200145,1717054243817,-500.0,0.00029315,6]
[328200147,1717054243826,-4291.87104827,0.00029378,2]
[328200149,1717054243835,-1364.07795239,0.00029378,2]
[328200151,1717054243845,-369.55401665,0.000294,2]
[328200153,1717054243854,-474.98,0.00029446,2]
[328200155,1717054243864,-1554.70090372,0.00029481,2]
[328200157,1717054243874,-150.0,0.000295,6]
[328200159,1717054243882,-150.0,0.00029581,2]
[328200161,1717054243891,-500.0,0.00029589,7]
[328200163,1717054243901,-270.0,0.0002965,2]
[328200164,1717054243911,-260.0,0.0002965,2]
[328200165,1717054243920,-439.61493001,0.00029693,2]
[328200166,1717054243929,-153.53255152,0.00029706,2]
[328200167,1717054243938,-150.0,0.00029741,2]
[328200168,1717054243947,-150.0,0.00029781,2]
[328200169,1717054243956,-150.79431233,0.00029789,2]
[328200170,1717054243966,-155.80308984,0.00029791,2]
[328200171,1717054243975,-166.66666668,0.00029795,2]
[328200172,1717054243984,-153.53255152,0.00029801,2]
[328200173,1717054243993,-150.61262182,0.00029828,2]
[328200174,1717054244003,-240.0,0.00029842,2]
[328200175,1717054244012,-152.98502604,0.00029849,2]
[328200176,1717054244118,-4291.87104827,0.00029856,2]
[328200177,1717054244127,-1364.07795239,0.00029856,2]
[328200178,1717054244136,-500.0,0.00029863,8]
[328200179,1717054244146,-150.0,0.00029897,2]
[328200180,1717054244155,-369.55401665,0.000299,2]
[328200181,1717054244165,-150.0,0.0002997,2]
[328200182,1717054244174,-151.44,0.00029972,2]
[328200183,1717054244185,-152.09644985,0.00029994,2]
[328200184,1717054244194,-786.05885176,0.00029998,2]
[328200185,1717054244205,-155.35658498,0.00029999,2]
[328200186,1717054244216,-5000.0,0.0003,4]
[328200187,1717054244226,-155.18770768,0.0003,4]
[328200188,1717054244235,-500.0,0.0003,2]
[328200189,1717054244245,-500.0,0.0003,2]
[328200190,1717054244254,-7218.43511069,0.0003,2]
[328200191,1717054244263,-1614.01253124,0.0003,4]
[328200192,1717054244272,-1000.0,0.0003,2]
[328200193,1717054244282,-224.0,0.0003,2]
[328200194,1717054244291,-150.0,0.0003,6]
[328200195,1717054244301,-208.0,0.0003,2]
[328200196,1717054244310,-200.0,0.0003,2]
[328200197,1717054244319,-150.0,0.00030004,2]
[328200198,1717054244328,-1554.70090368,0.00030012,2]
[328200199,1717054244337,-439.61493001,0.0003002,7]
[328200200,1717054244347,-1225.0,0.00030045,2]
[328200201,1717054244357,-164.0,0.00030045,2]
[328200202,1717054244366,-2398.0,0.00030045,2]
[328200203,1717054244375,-445.0,0.00030045,2]
[328200204,1717054244384,-808.0,0.00030045,2]
[328200205,1717054244394,-1651.0,0.00030045,2]
[328200206,1717054244403,-216.0,0.00030045,2]
[328200207,1717054244412,-1127.0,0.00030045,2]
[328200208,1717054244422,-808.899,0.00030045,2]
[328200209,1717054244432,-2765.0,0.00030045,2]
[328200210,1717054244441,-150.0,0.00030045,2]
[328200211,1717054244450,-357.0,0.00030045,2]
[328200212,1717054244463,-37944.0,0.00030045,2]
[328200213,1717054244472,-977.37,0.00030045,2]
[328200214,1717054244481,-150.0,0.00030058,2]
[328200215,1717054244490,-153.53255152,0.00030062,7]
[328200216,1717054244504,-155.80308984,0.00030076,7]
[328200217,1717054244514,-500.0,0.00030136,9]
[328200218,1717054244523,-166.66666666,0.00030143,7]
[328200219,1717054244532,-7256.11,0.0003017,5]
[328200220,1717054244543,-150.79431233,0.00030182,7]
[328200221,1717054244553,-150.0,0.00030203,2]
[328200222,1717054244562,-169.00998555,0.00030215,7]
[328200223,1717054244572,-270.0,0.0003023,2]
[328200224,1717054244581,-260.0,0.0003023,2]
[328200225,1717054244590,-150.0,0.00030236,2]
[328200226,1717054244600,-500.0,0.00030255,2]
[328200227,1717054244609,-200.0,0.00030255,2]
[328200228,1717054244618,-150.0,0.00030256,2]
[328200229,1717054244627,-150.0,0.00030256,2]
[328200230,1717054244636,-327.46,0.00030274,2]
[328200231,1717054244646,-1500.0,0.00030281,2]
[328200232,1717054244655,-4291.87104827,0.00030333,10]
[328200233,1717054244663,-1364.07795239,0.00030333,10]
[328200234,1717054244673,-150.79431233,0.00030335,7]
[328200235,1717054244682,-153.53255152,0.00030365,7]
[328200236,1717054244691,-150.0,0.000304,2]
[328200237,1717054244700,-369.55401665,0.000304,2]
[328200238,1717054244709,-150.79431233,0.00030409,7]
[328200239,1717054244718,-500.0,0.0003041,10]
[328200240,1717054244727,-150.0,0.0003041,2]
[328200241,1717054244736,-150.0,0.00030411,2]
[328200242,1717054244745,-151.0,0.00030445,2]
[328200243,1717054244754,-153.53255152,0.00030454,7]
[328200244,1717054244763,-152.19603352,0.00030474,7]
[328200245,1717054244773,-153.53255152,0.00030477,7]
[328200246,1717054244783,-150.0,0.000305,6]
[328200247,1717054244792,-159.48988265,0.00030515,7]
[328200248,1717054244801,-439.61493001,0.00030523,7]
[328200249,1717054244810,-1500.0,0.00030532,2]
[328200250,1717054244819,-1554.70090368,0.00030544,2]
[328200251,1717054244828,-439.61493001,0.00030546,7]
[328200252,1717054244837,-150.0,0.00030566,2]
[328200253,1717054244846,-150.0,0.00030588,2]
[328200254,1717054244855,-439.61493001,0.00030605,7]
[328200255,1717054244864,-150.0,0.00030621,2]
[328200256,1717054244873,-439.61493001,0.00030623,7]
[328200257,1717054244882,-1500.0,0.00030667,2]
[328200258,1717054244890,-1439.17984022,0.00030671,2]
[328200259,1717054244899,-500.0,0.00030684,11]
[328200260,1717054244908,-152.42318731,0.00030689,7]
[328200261,1717054244918,-166.66666666,0.00030691,7]
[328200262,1717054244927,-1500.0,0.00030704,2]
[328200263,1717054244935,-150.0,0.00030725,2]
[328200264,1717054244944,-500.0,0.00030749,2]
[328200265,1717054244953,-2133.11768277,0.0003075,7]
[328200266,1717054244962,-150.0,0.00030752,2]
[328200267,1717054244971,-150.0,0.00030755,2]
[328200268,1717054244980,-150.79431233,0.00030769,7]
[328200269,1717054244989,-152.98502604,0.00030781,7]
[328200270,1717054244998,-11090.32030828,0.00030788,2]
[328200271,1717054245007,-1500.0,0.00030794,2]
[328200272,1717054245016,-150.0,0.00030804,2]
[328200273,1717054245025,-270.0,0.0003081,2]
[328200274,1717054245035,-260.0,0.0003081,2]
[328200275,1717054245044,-4291.87104827,0.00030811,10]
[328200276,1717054245053,-150.0,0.00030838,2]
[328200277,1717054245062,-152.0,0.0003085,3]
[328200278,1717054245071,-1529.29229402,0.00030859,4]
[328200279,1717054245080,-155.11596389,0.00030866,7]
[328200280,1717054245089,-1500.0,0.00030874,2]
[328200281,1717054245099,-1500.0,0.00030876,2]
[328200282,1717054245108,-1548.287333,0.0003088,11]
[328200283,1717054245117,-160.0,0.000309,3]
[328200284,1717054245126,-350.207212,0.000309,3]
[328200285,1717054245135,-1000.0,0.000309,11]
[328200286,1717054245144,-315.64767306,0.000309,2]
[328200287,1717054245153,-369.55401665,0.000309,2]
[328200288,1717054245163,-6063.56233187,0.000309,3]
[328200289,1717054245172,-1500.0,0.00030906,2]
[328200290,1717054245181,-150.0,0.00030915,2]
[328200291,1717054245190,-1000.0,0.0003092,11]
[328200292,1717054245199,-157.9632236,0.00030921,7]
[328200293,1717054245208,-150.0,0.00030935,2]
[328200294,1717054245217,-241.0,0.0003094,5]
[328200295,1717054245226,-1000.0,0.0003094,11]
[328200296,1717054245235,-167.0,0.00030945,2]
[328200297,1717054245246,-1500.0,0.00030956,2]
[328200298,1717054245256,-500.0,0.00030958,12]
[328200299,1717054245265,-1000.0,0.0003096,11]
[328200300,1717054245275,-152.19603352,0.00030968,7]
[328200301,1717054245284,-1000.0,0.0003098,11]
[328200302,1717054245293,-6765.42159768,0.0003099,7]
[328200303,1717054245303,-7500.0,0.00030997,2]
[328200304,1717054245312,-500.0,0.00031,2]
[328200305,1717054245321,-155.92024035,0.00031,2]
[328200306,1717054245330,-155.0,0.00031,2]
[328200307,1717054245339,-159.064771,0.00031,2]
[328200308,1717054245349,-155.47989726,0.00031,2]
[328200309,1717054245360,-8064.11868163,0.00031,2]
[328200310,1717054245449,-181.485411,0.00031,7]
[328200311,1717054245459,-181.485411,0.00031,7]
[328200312,1717054245469,-1000.0,0.00031,11]
[328200313,1717054245483,-423.82675446,0.00031,2]
[328200314,1717054245492,-1402.28724569,0.00031,2]
[328200315,1717054245502,-8070.73872574,0.00031,2]
[328200317,1717054245511,-150.0,0.00031,6]
[328200318,1717054245521,-4438.63840052,0.00031,2]
[328200319,1717054245531,-439.61493001,0.00031006,7]
[328200320,1717054245540,-152.09644985,0.00031006,7]
[328200321,1717054245549,-1000.0,0.0003102,11]
[328200322,1717054245560,-1000.0,0.0003104,11]
[328200323,1717054245570,-154.12972106,0.00031041,7]
[328200324,1717054245579,-150.0,0.00031049,2]
[328200325,1717054245588,-1500.0,0.00031052,2]
[328200326,1717054245597,-439.61493001,0.00031053,7]
[328200327,1717054245607,-1000.0,0.0003106,11]
[328200328,1717054245615,-559.36260079,0.0003107,2]
[328200329,1717054245624,-500.0,0.0003107,2]
[328200330,1717054245634,-500.0,0.0003107,2]
[328200331,1717054245643,-500.0,0.0003107,2]
[328200332,1717054245652,-500.0,0.0003107,2]
[328200333,1717054245661,-500.0,0.0003107,2]
[328200334,1717054245670,-1000.0,0.0003108,11]
[328200335,1717054245679,-155.39031376,0.00031085,4]
[328200336,1717054245688,-200.0,0.00031085,120]
[328200337,1717054245697,-152.19603352,0.00031085,7]
[328200338,1717054245706,-689.42808337,0.00031086,4]
[328200339,1717054245716,-328.01060738,0.00031086,4]
[328200340,1717054245726,-155.85728462,0.00031086,4]
[328200341,1717054245735,-201.73382802,0.00031087,4]
[328200342,1717054245744,-156.11066294,0.00031087,4]
[328200343,1717054245753,-170.25355802,0.00031087,2]
[328200344,1717054245762,-158.31933754,0.0003109,7]
[328200345,1717054245774,-151.33,0.0003109,2]
[328200346,1717054245784,-151.33,0.0003109,2]
[328200347,1717054245793,-151.33,0.0003109,2]
[328200349,1717054245802,-151.33,0.0003109,2]
[328200351,1717054245811,-151.33,0.0003109,2]
[328200352,1717054245820,-151.33,0.0003109,2]
[328200353,1717054245829,-151.33,0.0003109,2]
[328200354,1717054245838,-151.33,0.0003109,2]
[328200355,1717054245847,-151.33,0.0003109,2]
[328200356,1717054245856,-151.33,0.0003109,2]
[328200357,1717054245865,-151.33,0.0003109,2]
[328200358,1717054245873,-151.33,0.0003109,2]
[328200359,1717054245883,-151.33,0.0003109,2]
[328200360,1717054245892,-151.33,0.0003109,2]
[328200361,1717054245902,-151.33,0.0003109,2]
[328200362,1717054245911,-151.33,0.0003109,2]
[328200363,1717054245920,-151.33,0.0003109,2]
[328200364,1717054245929,-151.33,0.0003109,2]
[328200365,1717054245938,-151.33,0.0003109,2]
[328200366,1717054245947,-151.33,0.0003109,2]
[328200367,1717054245956,-151.33,0.0003109,2]
[328200368,1717054245966,-151.33,0.0003109,2]
[328200369,1717054245975,-151.33,0.0003109,2]
[328200370,1717054245984,-150.0,0.00031096,2]
[328200371,1717054245994,-66109.94893773,0.00031097,2]
[328200372,1717054246003,-150.0,0.00031098,2]
[328200373,1717054246012,-688.98200519,0.00031099,15]
[328200374,1717054246023,-1327.29702348,0.000311,11]
[328200375,1717054246031,-379374.72665772,0.000311,5]
[328200376,1717054246046,-1158.4533609,0.000311,5]
[328200378,1717054247066,-150.0,0.00029598,2]
[328200379,1717054247081,-150.0,0.0003004,2]
[328200380,1717054247096,-150.0,0.00030581,2]
[328200381,1717054247110,-150.0,0.00030592,2]
[328200382,1717054247124,-150.0,0.00031026,2]
[328200383,1717054247138,-36174.99999904,0.000311,5]
[328200384,1717054247312,-150.0,0.00030175,2]
[328200385,1717054247327,-1688.86160494,0.000311,5]
[328200386,1717054247344,-7121.5,0.000311,5]
[328200387,1717054256249,168122.43805421,0.00013973,2]
[328200388,1717054257365,2607.39967241,0.00013694,2]
[328200391,1717054285389,19751.57634227,0.00013694,2]
[328200394,1717054307312,19772.1008116,0.00013694,2]
[328200399,1717054567419,1643.5900317,0.0001342,2]
[328200401,1717054615363,287.98921416,0.000125,2]
[328200407,1717054989457,-200.0,0.00031087,120]
[328200408,1717055090572,154.81,0.00013973,2]
[328200435,1717055431837,-280.56667432,0.0001713,2]
[328200436,1717055431902,-143.54741882,0.0001713,2]
[328200437,1717055431918,-263.37325152,0.00017131,2]
[328200438,1717055431938,-699.17683877,0.00017136,2]
[328200439,1717055431955,-522.3297664,0.00017136,2]
[328200440,1717055431978,-287.36732247,0.00017136,2]
[328200441,1717055432055,-2390.18167236,0.00017136,2]
[328200442,1717055432070,-534.80668639,0.00017228,2]
[328200443,1717055432087,-367.12,0.00019726,2]
[328200444,1717055432100,-1235.36360833,0.00019726,2]
[328200445,1717055432122,-875.71639167,0.00019726,2]
[328200446,1717055432137,-497.55360833,0.00019726,2]
[328200447,1717055432175,-2560.58639167,0.00019726,2]
[328200448,1717055432190,-150.0,0.00019973,2]
[328200449,1717055432205,-5581.75,0.00019973,2]
[328200450,1717055432220,-1164.81,0.00019973,2]
[328200451,1717055432234,-1664.95,0.00019973,2]
[328200453,1717055432248,-1032.47294392,0.0002,4]
[328200455,1717055432262,-163.8,0.0002,2]
[328200458,1717055432276,-394.49022376,0.00025,2]
[328200460,1717055432291,-408.39,0.00027172,2]
[328200462,1717055432306,-856.0,0.0002866,2]
[328200465,1717055432321,-250.0,0.00028764,2]
[328200467,1717055432335,-500.0,0.00028767,4]
[328200469,1717055432350,-514.94,0.00028798,2]
[328200472,1717055432365,-1923.48378074,0.00028799,2]
[328200477,1717055432378,-250.0,0.00028875,2]
[328200480,1717055432392,-154.79,0.00028877,2]
[328200484,1717055432407,-1651.32,0.000289,2]
[328200486,1717055432422,-905.83,0.00028922,2]
[328200489,1717055432436,-666.52923316,0.00028999,2]
[328200491,1717055432450,-155.53504719,0.00028999,2]
[328200493,1717055432465,-157.93299216,0.00028999,2]
[328200494,1717055432480,-155.35434677,0.00028999,2]
[328200495,1717055432493,-544.92979362,0.00028999,2]
[328200496,1717055432508,-428.66255048,0.00028999,2]
[328200497,1717055432522,-155.3442897,0.00028999,2]
[328200498,1717055432537,-168.09348765,0.00028999,2]
[328200499,1717055432552,-155.0,0.00028999,2]
[328200500,1717055432566,-222.08939345,0.00028999,2]
[328200501,1717055432581,-1000.0,0.00028999,2]
[328200502,1717055432595,-687.1486291,0.00028999,2]
[328200503,1717055432610,-234.55467578,0.00028999,2]
[328200504,1717055432626,-155.39397339,0.00028999,2]
[328200505,1717055432640,-694.9488,0.00028999,2]
[328200506,1717055432656,-500.0,0.00028999,7]
[328200507,1717055432670,-500.0,0.00028999,7]
[328200508,1717055432685,-500.0,0.00028999,7]
[328200509,1717055432698,-500.0,0.00028999,7]
[328200510,1717055432713,-500.0,0.00028999,7]
[328200511,1717055432728,-530.53086504,0.00028999,7]
[328200512,1717055432743,-500.0,0.00028999,7]
[328200513,1717055432759,-1035.61,0.00028999,2]
[328200514,1717055432912,-500.0,0.00028999,7]
[328200515,1717055432923,-500.0,0.00028999,7]
[328200516,1717055432932,-500.0,0.00028999,7]
[328200517,1717055432941,-500.0,0.00028999,7]
[328200518,1717055432951,-500.0,0.00028999,7]
[328200519,1717055432962,-500.0,0.00028999,7]
[328200520,1717055432972,-500.0,0.00028999,7]
[328200521,1717055432982,-549.52536013,0.00028999,7]
[328200522,1717055432992,-500.0,0.00028999,7]
[328200523,1717055433001,-500.0,0.00028999,7]
[328200524,1717055433010,-530.77183349,0.00028999,7]
[328200525,1717055433020,-500.0,0.00028999,7]
[328200526,1717055433029,-500.0,0.00028999,7]
[328200527,1717055433037,-500.0,0.00028999,7]
[328200528,1717055433048,-500.0,0.00028999,7]
[328200529,1717055433057,-500.0,0.00028999,7]
[328200530,1717055433067,-500.0,0.00028999,7]
[328200531,1717055433076,-500.0,0.00028999,7]
[328200532,1717055433085,-500.0,0.00028999,7]
[328200533,1717055433094,-500.0,0.00028999,7]
[328200534,1717055433103,-500.0,0.00028999,7]
[328200535,1717055433112,-557.38358691,0.00028999,7]
[328200536,1717055433122,-500.0,0.00028999,7]
[328200537,1717055433131,-500.0,0.00028999,7]
[328200538,1717055433141,-500.0,0.00028999,7]
[328200539,1717055433150,-500.0,0.00028999,7]
[328200540,1717055433159,-500.0,0.00028999,7]
[328200541,1717055433168,-500.0,0.00028999,7]
[328200542,1717055433177,-270.35857865,0.00029,2]
[328200543,1717055433187,-160.40552983,0.00029,2]
[328200544,1717055433198,-647.78381543,0.00029,2]
[328200545,1717055433208,-1019.6960335,0.00029,2]
[328200546,1717055433217,-500.0,0.00029041,5]
[328200547,1717055433226,-4937.56008526,0.00029191,2]
[328200548,1717055433235,-500.0,0.00029273,7]
[328200549,1717055433245,-500.0,0.00029273,7]
[328200550,1717055433254,-500.0,0.00029273,7]
[328200551,1717055433263,-509.85893903,0.00029273,7]
[328200552,1717055433272,-500.0,0.00029273,7]
[328200553,1717055433281,-500.0,0.00029273,7]
[328200554,1717055433292,-1035.61,0.00029273,2]